bitfinex/quotes_ETHUSD_20241003
["timestamp","ask_amount","ask_price","bid_price","bid_amount"]
[1727943155167,6.7936,2355.2,2354.6,3.39751]
[1727943155514,6.7936,2355.2,2354.6,6.79502]
[1727943155515,3.39676,2355.2,2354.6,6.79502]
[1727943155701,0.6648,2355.5,2354.6,0.679502]
[1727943155856,3.39595,2355.8,2355.2,3.39671]
[1727943156249,3.39595,2355.8,2355.1,3.39678]
[1727943156250,0.44326441,2355.4,2355.1,3.39678]
[1727943156564,0.6648,2356.3,2355.7,3.39589]
[1727943156978,3.3951,2356.4,2355.7,6.79182]
[1727943157180,3.3951,2356.4,2355.8,3.39585]
[1727943157391,3.39478,2356.6,2355.9,3.39572]
[1727943157593,3.39478,2356.6,2355.6,0.768]
[1727943157594,3.3953,2356.2,2355.6,0.768]
[1727943158388,3.39507,2356.4,2355.7,3.39592]
[1727943158724,3.39521,2356.3,2355.7,3.39592]
[1727943159435,3.39479,2356.6,2355.8,3.39582]
[1727943159590,3.39512,2356.4,2355.8,3.39582]
[1727943159936,3.3947,2356.7,2356.1,3.39534]
[1727943160233,0.44321262,2356.8,2356.2,3.39527]
[1727943160384,3.39467,2356.7,2355.8,3.39581]
[1727943160731,3.395,2356.5,2355.8,3.39578]
[1727943160941,3.39468,2356.7,2355.8,3.39578]
[1727943161133,3.39468,2356.7,2356.0,3.39556]
[1727943161431,3.39468,2356.7,2356.1,3.39544]
[1727943162424,0.44321262,2356.8,2356.2,3.39524]
[1727943162425,3.44321262,2356.8,2356.2,3.39524]
[1727943162827,3.44321262,2356.8,2356.2,3.3952]
[1727943163036,0.44321262,2356.8,2356.2,0.33952]
[1727943163194,0.44321262,2356.8,2356.4,3.39491]
[1727943163698,0.44321262,2356.8,2356.5,3.39485]
[1727943163899,0.44321262,2356.8,2356.6,3.3947]
[1727943164110,0.44321262,2356.8,2356.7,3.39457]
[1727943164287,3.39368,2357.4,2356.7,5.01457]
[1727943164487,3.39351,2357.5,2356.9,3.39419]
[1727943165101,3.39351,2357.5,2356.9,6.78837]
[1727943165308,0.44299062,2357.6,2357.1,3.39399]
[1727943165498,0.44299062,2357.6,2356.9,3.39418]
[1727943165499,0.44299062,2357.6,2356.9,6.78836]
[1727943165704,0.44299062,2357.6,2356.8,1.62]
[1727943165705,3.39408,2357.1,2356.8,1.62]
[1727943165914,3.39428,2356.9,2356.8,1.62]
[1727943166628,6.94428,2356.9,2356.8,1.62]
[1727943166843,6.39428,2356.9,2356.8,1.62]
[1727943167207,6.94428,2356.9,2356.8,1.62]
[1727943168045,6.39428,2356.9,2356.8,1.62]
[1727943168259,3.0,2356.9,2356.8,1.62]
[1727943168412,6.39428,2356.9,2356.8,1.62]
[1727943168609,3.39428,2356.9,2356.8,1.62]
[1727943169960,3.39412,2357.1,2356.8,1.62]
[1727943170107,6.39386,2357.2,2356.8,1.62]
[1727943170108,3.39414,2357.0,2356.8,1.62]
[1727943170745,6.39394,2357.2,2356.8,1.62]
[1727943170970,3.83635062,2357.6,2356.8,2.3726]
[1727943171450,3.83635062,2357.6,2356.8,6.00421]
[1727943171648,3.83635062,2357.6,2357.0,3.39414]
[1727943171823,3.39344,2357.5,2357.0,3.39414]
[1727943172025,3.39344,2357.5,2356.8,6.00417]
[1727943172220,3.83635062,2357.6,2357.0,3.39412]
[1727943172559,0.44299062,2357.6,2357.2,8.40754]
[1727943172764,0.44299062,2357.6,2357.2,5.01377]
[1727943172968,0.44299062,2357.6,2357.2,5.01376]
[1727943173122,0.44299062,2357.6,2357.2,1.62]
[1727943173324,3.83637062,2357.6,2357.2,1.62]
[1727943173538,0.44299062,2357.6,2357.2,1.62]
[1727943173890,3.39286,2357.9,2357.3,3.39368]
[1727943174039,3.83565374,2358.0,2357.4,5.01355]
[1727943174244,3.39299,2357.8,2357.4,2.3966]
[1727943174479,3.39336,2357.6,2357.4,1.62]
[1727943175645,3.39342,2357.5,2357.4,1.62]
[1727943176396,7.05822,2357.5,2357.4,1.62]
[1727943176684,8.32443825,2357.5,2357.4,1.62]
[1727943176987,7.60822,2357.5,2357.4,1.62]
[1727943177290,7.05822,2357.5,2357.4,1.62]
[1727943178538,6.39342,2357.5,2357.4,1.62]
[1727943178955,3.39336,2357.6,2357.4,1.62]
[1727943179681,3.39307,2357.8,2357.4,1.62]
[1727943179894,3.39314,2357.7,2357.4,1.62]
[1727943180044,3.39342,2357.5,2357.4,1.62]
[1727943185154,17.296784,2357.5,2357.4,1.62]
[1727943185374,17.296784,2357.5,2355.8,3.39577]
[1727943185375,3.3954,2356.2,2355.8,0.816]
[1727943185702,3.3951,2356.4,2355.9,3.3957]
[1727943186051,3.3951,2356.4,2355.8,0.816]
[1727943186250,3.39538,2356.2,2355.8,0.816]
[1727943186573,6.79078,2356.2,2355.8,0.816]
[1727943186780,3.39538,2356.2,2355.5,3.39621]
[1727943187095,3.39538,2356.2,2354.7,6.39736]
[1727943187096,3.39581,2355.9,2355.2,3.39663]
[1727943187261,3.39581,2355.9,2355.2,6.79328]
[1727943187447,3.39581,2355.9,2355.2,3.39661]
[1727943187852,3.39581,2355.9,2355.3,3.39658]
[1727943188652,3.39581,2355.9,2355.2,3.39661]
[1727943189085,3.39581,2355.9,2355.2,7.472597]
[1727943189286,3.39581,2355.9,2355.2,3.39661]
[1727943189497,3.0,2355.8,2354.9,0.7698]
[1727943189796,3.39664,2355.3,2354.9,0.7698]
[1727943190866,3.39611,2355.7,2355.0,3.39693]
[1727943191061,3.3958,2355.9,2355.2,3.39663]
[1727943191559,3.39588,2355.8,2355.2,3.39663]
[1727943191776,3.39587,2355.8,2355.2,3.39663]
[1727943191954,3.3958,2355.9,2355.2,6.79326]
[1727943192296,3.39554,2356.1,2355.4,3.39643]
[1727943192496,3.39554,2356.1,2355.5,0.03959477]
[1727943192997,3.39521,2356.3,2355.8,0.7641]
[1727943193490,6.79045,2356.3,2355.8,0.7641]
[1727943193701,3.39495,2356.5,2355.8,1.519704]
[1727943193858,3.39474,2356.6,2356.0,3.39557]
[1727943194048,0.44302072,2356.7,2356.1,3.39541]
[1727943194710,0.44302072,2356.7,2355.8,1.519704]
[1727943194711,3.39438,2356.9,2355.8,1.519704]
[1727943194992,3.39561,2356.0,2355.8,0.7641]
[1727943195200,3.39598,2355.8,2355.5,0.814]
[1727943195503,3.39636,2355.5,2355.0,0.814]
[1727943196025,3.39684,2355.2,2355.0,0.814]
[1727943196294,3.39669,2355.3,2354.7,0.814]
[1727943196295,3.39688,2355.1,2354.7,0.814]
[1727943197055,3.39703,2355.0,2354.7,0.814]
[1727943197256,3.39688,2355.1,2353.9,0.8153]
[1727943197257,3.39802,2354.4,2353.9,0.8153]
[1727943197508,3.39813,2354.3,2353.9,0.8153]
[1727943197654,0.6648,2354.7,2353.9,0.8153]
[1727943197859,3.39769,2354.6,2353.9,4.21382]
[1727943198186,3.0,2354.8,2353.9,0.8153]
[1727943198395,3.6648,2355.0,2353.4,0.752]
[1727943198396,3.398,2354.4,2353.4,0.752]
[1727943198700,3.398,2354.4,2353.0,0.752]
[1727943198701,3.39968,2353.2,2353.0,0.752]
[1727943198913,3.39937,2353.4,2353.0,0.752]
[1727943199404,3.39932,2353.5,2353.0,0.752]
[1727943199558,3.39871,2353.9,2353.2,3.39961]
[1727943199796,3.39871,2353.9,2353.1,3.39967]
[1727943200539,3.3993,2353.5,2353.0,0.752]
[1727943200741,3.40006,2352.9,2352.6,0.8156]
[1727943200949,0.6648,2353.2,2351.9,0.8156]
[1727943201114,3.40075,2352.5,2351.9,0.8156]
[1727943201316,3.40075,2352.5,2351.9,4.639201]
[1727943201515,3.40073,2352.5,2351.9,4.639201]
[1727943201845,3.39983,2353.1,2352.4,3.40077]
[1727943202002,3.39983,2353.1,2352.6,0.8063]
[1727943202200,3.39952,2353.3,2352.6,0.8063]
[1727943202201,3.0,2353.3,2352.6,0.8063]
[1727943202439,0.55,2353.4,2352.6,0.8063]
[1727943202600,3.40046,2352.7,2352.2,0.7606]
[1727943202803,3.39996,2353.0,2352.2,0.7606]
[1727943202999,3.4008,2352.4,2352.2,0.7606]
[1727943203203,3.40059,2352.6,2352.2,0.7606]
[1727943203452,3.40027,2352.8,2352.2,0.7606]
[1727943203652,3.39996,2353.0,2352.3,3.40078]
[1727943203853,3.39996,2353.0,2352.3,4.157031]
[1727943204064,3.40024,2352.8,2352.3,0.756251]
[1727943204230,3.40024,2352.8,2352.2,0.7606]
[1727943204231,3.6648,2353.3,2352.2,0.7606]
[1727943204562,6.80061,2352.8,2352.2,0.7606]
[1727943204772,3.4003,2352.8,2352.2,0.7606]
[1727943205056,3.40029,2352.8,2352.2,0.7606]
[1727943205566,3.40045,2352.7,2352.2,0.7606]
[1727943205747,3.40037,2352.7,2352.2,4.917943]
[1727943205955,3.40029,2352.8,2352.2,4.917933]
[1727943206257,3.39967,2353.2,2352.5,3.4005]
[1727943206258,3.39971,2353.2,2352.5,3.4005]
[1727943206467,3.39992,2353.0,2352.3,0.4917933]
[1727943206625,3.39986,2353.1,2352.5,3.40062]
[1727943206821,3.39949,2353.3,2352.7,3.40025]
[1727943207039,3.39941,2353.4,2352.8,0.421195]
[1727943207040,3.39962,2353.2,2352.8,0.421195]
[1727943207363,3.39962,2353.2,2352.6,0.8117]
[1727943207364,3.39996,2353.0,2352.6,0.8117]
[1727943208221,0.6648,2353.7,2352.6,0.8117]
[1727943208222,3.39941,2353.4,2352.6,0.8117]
[1727943208473,3.40008,2352.9,2352.6,0.8117]
[1727943208680,3.39974,2353.2,2352.6,4.21219]
[1727943209134,6.7995,2353.2,2352.6,0.8117]
[1727943209473,7.06378,2353.7,2352.6,0.8117]
[1727943209474,0.6648,2353.7,2352.7,3.40028]
[1727943209683,3.39925,2353.5,2352.7,6.80051]
[1727943209986,0.6648,2353.7,2352.6,0.8117]
[1727943210134,3.4,2353.0,2352.6,0.8117]
[1727943210332,0.6648,2353.7,2352.6,0.8117]
[1727943210333,3.39969,2353.2,2352.6,0.8117]
[1727943210537,3.39969,2353.2,2352.6,1.232932]
[1727943210932,3.84225094,2353.6,2352.6,0.8117]
[1727943211132,3.40006,2352.9,2352.6,0.8117]
[1727943211378,3.40034,2352.8,2352.6,0.8117]
[1727943211676,3.40006,2352.9,2352.6,0.8117]
[1727943211974,3.40022,2352.8,2352.6,0.8117]
[1727943212281,3.40006,2352.9,2352.6,0.8117]
[1727943212436,3.40006,2352.9,2352.2,0.8048]
[1727943212775,3.40034,2352.7,2352.2,4.966571]
[1727943213397,3.40006,2352.9,2352.2,4.966501]
[1727943213674,3.0,2353.5,2352.2,4.966501]
[1727943213675,3.4003,2352.8,2352.2,4.966501]
[1727943213882,3.40046,2352.7,2352.2,0.8048]
[1727943214767,3.39941,2353.4,2352.6,3.4004]
[1727943214978,3.39941,2353.4,2352.7,0.8214]
[1727943214979,3.3997,2353.2,2352.7,0.8214]
[1727943215176,3.39941,2353.4,2352.7,4.22166]
[1727943215377,3.39964,2353.2,2352.7,4.983866]
[1727943215549,3.39978,2353.1,2352.7,0.8214]
[1727943215749,3.39993,2353.0,2352.7,0.8214]
[1727943216008,3.39978,2353.1,2352.7,0.8214]
[1727943216199,3.39978,2353.1,2352.3,0.420589]
[1727943216200,3.39965,2353.2,2352.3,0.7647]
[1727943216348,6.80112,2352.6,2352.3,0.7647]
[1727943216662,3.0,2353.3,2352.0,3.40127]
[1727943216663,3.40078,2352.4,2352.0,0.7647]
[1727943216863,3.40078,2352.4,2352.0,1.445481]
[1727943217386,3.39999,2353.0,2352.4,3.4007]
[1727943217563,3.4001,2352.9,2352.5,0.34007]
[1727943217762,3.40033,2352.8,2352.1,3.40112]
[1727943217960,3.40033,2352.8,2352.1,6.80224]
[1727943218159,3.40033,2352.8,2352.3,3.4008]
[1727943218360,3.40033,2352.8,2352.1,3.40112]
[1727943218361,3.39978,2353.1,2352.5,3.40055]
[1727943218591,3.39978,2353.1,2352.6,0.680133]
[1727943218918,3.39978,2353.1,2352.6,4.16867]
[1727943219053,1.10794517,2353.9,2353.0,3.39981]
[1727943219255,3.39887,2353.8,2353.2,3.39954]
[1727943219495,0.44314517,2353.9,2353.2,4.16773]
[1727943219496,3.84175517,2353.9,2353.2,4.16773]
[1727943219704,3.39854,2354.0,2353.4,3.39925]
[1727943220000,0.44314184,2354.2,2353.8,0.7682]
[1727943220215,0.44314184,2354.2,2354.0,3.39847]
[1727943220423,0.44314184,2354.2,2353.8,4.16693]
[1727943220701,3.39789,2354.4,2353.8,4.16693]
[1727943220902,3.39766,2354.6,2353.8,4.583563]
[1727943221202,0.44310375,2354.7,2354.0,0.7682]
[1727943221496,0.6648,2355.4,2354.3,3.39803]
[1727943221497,3.39705,2355.0,2354.3,3.39803]
[1727943221698,3.3974,2354.8,2354.0,4.16655]
[1727943221898,3.39769,2354.6,2354.0,4.16655]
[1727943222408,0.6648,2355.2,2354.0,0.7682]
[1727943222713,0.6648,2355.2,2353.4,3.0]
[1727943222714,3.39818,2354.2,2353.5,0.8035]
[1727943223012,3.39818,2354.2,2353.6,3.39902]
[1727943223302,3.39818,2354.2,2353.6,3.819291]
[1727943223457,3.39818,2354.2,2353.5,0.8035]
[1727943223660,3.39848,2354.0,2353.5,0.8035]
[1727943223900,3.39848,2354.0,2353.5,4.20267]
[1727943224202,3.39834,2354.1,2353.5,4.20267]
[1727943224565,3.39848,2354.0,2353.5,4.20269]
[1727943224964,6.79649,2354.2,2353.5,4.20269]
[1727943225306,3.39818,2354.2,2353.6,3.39897]
[1727943225668,6.79644,2354.2,2353.6,3.39897]
[1727943225976,3.39861,2353.9,2353.5,0.8035]
[1727943226181,3.3986,2354.0,2353.1,0.8258]
[1727943226379,3.39933,2353.4,2353.1,0.8258]
[1727943226597,3.0,2354.0,2352.6,3.9368025]
[1727943226598,3.0,2353.6,2352.7,0.7979]
[1727943226767,3.39986,2353.1,2352.7,0.7979]
[1727943226962,3.39987,2353.1,2352.7,0.7979]
[1727943227166,3.39994,2353.0,2352.7,0.7979]
[1727943227664,3.39969,2353.2,2352.7,0.7979]
[1727943227871,3.39991,2353.0,2352.7,0.7979]
[1727943228184,3.40006,2352.9,2352.7,0.7979]
[1727943228372,3.39991,2353.0,2352.7,0.7979]
[1727943228920,6.39911,2353.6,2352.3,0.8114]
[1727943228921,3.0,2353.4,2352.3,0.8114]
[1727943229070,3.40027,2352.8,2352.3,0.8114]
[1727943230012,3.40002,2353.0,2352.5,3.40061]
[1727943230515,3.39977,2353.1,2352.4,3.40065]
[1727943230713,3.0,2353.4,2352.3,0.8114]
[1727943230870,5.36402498,2353.5,2352.3,0.8114]
[1727943230871,3.40055,2352.6,2352.3,0.8114]
[1727943232269,6.80118,2352.6,2352.3,0.8114]
[1727943232717,3.40078,2352.4,2352.3,0.8114]
[1727943232900,3.40078,2352.4,2351.9,0.7749]
[1727943233873,3.40078,2352.4,2351.9,4.17632]
[1727943234072,3.40093,2352.3,2351.9,1.533194]
[1727943235688,3.40101,2352.3,2351.9,0.7749]
[1727943235885,3.40078,2352.4,2351.9,0.7749]
[1727943236374,3.40094,2352.3,2351.9,0.7749]
[1727943236819,3.40107,2352.2,2351.9,0.7749]
[1727943236982,6.80169,2352.4,2351.9,0.7749]
[1727943237177,3.40129,2352.1,2351.9,0.7749]
[1727943238283,3.40102,2352.3,2351.9,0.7749]
[1727943239076,3.401,2352.3,2351.9,0.7749]
[1727943239274,3.40114,2352.2,2351.9,0.7749]
[1727943239508,3.401,2352.3,2351.9,0.7749]
[1727943239987,3.40074,2352.5,2351.8,0.005]
[1727943239988,6.02882498,2352.5,2351.8,0.005]
[1727943240187,3.4015,2351.9,2351.8,0.005]
[1727943240389,3.40115,2352.2,2351.8,0.005]
[1727943240722,6.80256,2352.1,2351.8,0.005]
[1727943240926,3.40124,2352.1,2351.8,0.005]
[1727943241088,3.4015,2351.9,2351.8,0.005]
[1727943241777,10.810098,2351.9,2351.8,0.005]
[1727943242126,17.99782625,2351.9,2351.8,0.005]
[1727943242412,3.40308,2350.9,2350.6,0.7853]
[1727943242615,3.4031,2350.8,2350.5,0.29125974]
[1727943243276,3.40338,2350.6,2350.5,0.29125974]
[1727943244291,7.61318,2350.6,2350.5,0.29125974]
[1727943244497,7.06318,2350.6,2350.5,0.29125974]
[1727943244791,6.40338,2350.6,2350.5,0.29125974]
[1727943244994,6.95338,2350.6,2350.5,0.29125974]
[1727943245619,12.681251,2350.6,2350.5,0.29125974]
[1727943245824,4.06318,2350.6,2350.5,0.29125974]
[1727943245977,3.40338,2350.6,2350.5,0.29125974]
[1727943247126,4.06318,2350.6,2350.5,0.29125974]
[1727943247333,7.06318,2350.6,2350.5,0.29125974]
[1727943247680,3.40338,2350.6,2350.5,0.29125974]
[1727943248085,6.40338,2350.6,2350.5,0.29125974]
[1727943249020,3.40338,2350.6,2350.5,0.29125974]
[1727943250213,8.16043264,2350.6,2350.5,0.29125974]
[1727943250395,13.15346364,2350.6,2350.5,0.29125974]
[1727943250599,8.16043264,2350.6,2350.5,0.29125974]
[1727943251328,13.82938364,2350.6,2350.5,0.29125974]
[1727943251487,11.73445364,2350.6,2350.5,0.29125974]
[1727943251687,7.61318,2350.6,2350.5,0.29125974]
[1727943251902,4.06318,2350.6,2350.5,0.29125974]
[1727943252102,3.40338,2350.6,2350.5,0.29125974]
[1727943254068,7.84838,2350.6,2350.5,0.29125974]
[1727943254276,13.78799096,2350.6,2350.5,0.29125974]
[1727943254418,13.21240498,2350.6,2350.5,0.29125974]
[1727943254865,16.76240498,2350.6,2350.5,0.29125974]
[1727943255229,19.31940498,2350.6,2350.4,0.005]
[1727943255430,3.40441,2349.9,2349.7,0.03283351]
[1727943255674,20.207743,2349.8,2349.7,0.03283351]
[1727943255887,13.547373,2349.8,2349.7,0.03283351]
[1727943256250,26.210199,2349.8,2349.7,0.03283351]
[1727943256545,14.811628,2349.8,2349.7,0.03283351]
[1727943256729,11.432406,2349.8,2349.7,0.03283351]
[1727943257181,7.06434,2349.8,2349.7,0.03283351]
[1727943257342,6.78485,2349.8,2349.7,0.03283351]
[1727943257526,4.06434,2349.8,2349.7,0.03283351]
[1727943257993,6.8171,2349.8,2349.7,0.03283351]
[1727943258265,4.06434,2349.8,2349.7,0.03283351]
[1727943258568,7.06434,2349.8,2349.7,0.03283351]
[1727943258771,7.61434,2349.8,2349.7,0.03283351]
[1727943259077,7.06434,2349.8,2349.7,0.03283351]
[1727943259463,9.58686,2349.8,2349.7,0.03283351]
[1727943259666,7.61434,2349.8,2349.7,0.03283351]
[1727943259863,7.06434,2349.8,2349.7,0.03283351]
[1727943260104,11.020166,2349.8,2349.7,0.03283351]
[1727943260270,9.72254,2349.8,2349.7,0.03283351]
[1727943260625,10.33054,2349.8,2349.7,0.03283351]
[1727943260784,7.06434,2349.8,2349.7,0.03283351]
[1727943261115,6.40454,2349.8,2349.7,0.03283351]
[1727943264099,3.40454,2349.8,2349.7,0.03283351]
[1727943264414,3.40441,2349.9,2349.7,0.03283351]
[1727943264415,3.40441,2349.9,2349.7,0.84423351]
[1727943264961,3.40454,2349.8,2349.7,0.84423351]
[1727943265707,3.40441,2349.9,2349.7,0.84423351]
[1727943266220,3.40454,2349.8,2349.7,0.84423351]
[1727943266407,3.40454,2349.8,2349.7,0.03283351]
[1727943267484,11.97627136,2349.8,2349.7,0.03283351]
[1727943267599,14.53327136,2349.8,2349.7,0.03283351]
[1727943267798,22.72183722,2349.8,2349.7,0.03283351]
[1727943268022,21.67242722,2349.8,2349.7,0.03283351]
[1727943268437,12.06319886,2349.8,2349.7,0.03283351]
[1727943268634,11.51319886,2349.8,2349.7,0.03283351]
[1727943268938,8.95619886,2349.8,2349.7,0.03283351]
[1727943270321,6.84799886,2349.8,2349.7,0.03283351]
[1727943271261,3.40526,2349.3,2349.2,0.1178848]
[1727943271439,3.4049,2349.6,2349.2,0.1178848]
[1727943271440,3.44345886,2349.8,2349.2,0.1178848]
[1727943271591,3.40478,2349.7,2349.2,0.1178848]
[1727943271791,3.40526,2349.3,2349.2,0.1178848]
[1727943272231,3.40514,2349.4,2349.2,0.1178848]
[1727943272432,3.40494,2349.6,2349.2,0.1178848]
[1727943272433,3.40493,2349.6,2349.2,0.1178848]
[1727943272934,0.44345886,2349.8,2349.2,0.1178848]
[1727943273241,3.40526,2349.3,2349.2,0.1178848]
[1727943273593,3.40509,2349.5,2349.2,0.1178848]
[1727943273594,3.40522,2349.4,2349.2,0.1178848]
[1727943273793,3.40526,2349.3,2349.2,0.1178848]
[1727943274629,3.40521,2349.4,2349.2,0.1178848]
[1727943274837,6.81046,2349.4,2349.2,0.1178848]
[1727943275072,6.81044,2349.4,2349.2,0.1178848]
[1727943275376,3.40521,2349.4,2349.2,0.1178848]
[1727943275878,3.40526,2349.3,2349.2,0.1178848]
[1727943276179,3.40521,2349.4,2349.2,0.1178848]
[1727943276404,3.405,2349.5,2349.2,0.1178848]
[1727943276844,0.44345886,2349.8,2349.2,0.1178848]
[1727943277047,3.40526,2349.3,2349.2,0.1178848]
[1727943277272,0.44345886,2349.8,2349.2,0.1178848]
[1727943277273,3.40504,2349.5,2349.2,0.1178848]
[1727943277637,3.40512,2349.4,2349.2,0.1178848]
[1727943277844,3.40526,2349.3,2349.2,0.1178848]
[1727943278254,3.405,2349.5,2349.2,0.1178848]
[1727943278484,6.81012,2349.5,2349.2,0.1178848]
[1727943278802,3.40513,2349.4,2349.2,0.1178848]
[1727943278991,3.40477,2349.7,2349.2,0.1178848]
[1727943279140,3.40513,2349.4,2349.2,0.1178848]
[1727943279690,6.80931,2349.8,2349.2,3.5232648]
[1727943279858,3.40464,2349.8,2349.3,0.8167]
[1727943280066,3.40435,2350.0,2349.4,3.40504]
[1727943280389,3.40435,2350.0,2349.3,0.8167]
[1727943280390,3.40433,2350.0,2349.3,4.22188]
[1727943280551,3.40433,2350.0,2349.4,3.40505]
[1727943280753,3.40411,2350.1,2349.5,3.40486]
[1727943280961,3.40411,2350.1,2349.6,0.8167]
[1727943281192,3.40411,2350.1,2349.6,4.22143]
[1727943281791,3.40411,2350.1,2349.6,4.22144]
[1727943282103,3.40405,2350.2,2349.7,3.40467]
[1727943282311,3.58297165,2350.6,2350.1,3.40406]
[1727943282312,3.40344,2350.6,2350.1,3.40406]
[1727943282619,7.24968785,2350.8,2350.3,0.8043]
[1727943282781,3.4034,2350.6,2350.3,0.8043]
[1727943282983,6.80688,2350.6,2350.3,0.8043]
[1727943283311,3.40353,2350.5,2350.3,0.8043]
[1727943283718,3.40367,2350.4,2349.8,0.7925]
[1727943283882,3.40396,2350.3,2349.8,0.7925]
[1727943284230,3.40422,2350.1,2349.8,0.7925]
[1727943284523,3.40418,2350.1,2349.8,0.7925]
[1727943284672,3.40425,2350.0,2349.8,0.7925]
[1727943285314,3.40418,2350.1,2349.8,0.7925]
[1727943285612,6.80838,2350.1,2349.8,0.7925]
[1727943285913,3.40418,2350.1,2349.8,0.7925]
[1727943286487,7.06326,2350.6,2349.8,0.7925]
[1727943286488,3.40371,2350.4,2349.8,0.7925]
[1727943286689,3.40426,2350.0,2349.8,0.7925]
[1727943287001,3.40405,2350.2,2349.8,0.7925]
[1727943287002,3.40411,2350.1,2349.8,0.7925]
[1727943287591,3.40376,2350.4,2349.8,0.7925]
[1727943287808,3.40404,2350.2,2349.8,0.7925]
[1727943287974,3.40383,2350.3,2349.8,4.19699]
[1727943288320,3.40383,2350.3,2349.8,0.7925]
[1727943288321,3.40414,2350.1,2349.8,0.7925]
[1727943288979,3.40428,2350.0,2349.8,0.7925]
[1727943289180,4.51104752,2350.6,2349.8,0.7925]
[1727943289414,3.6598,2350.6,2349.8,0.7925]
[1727943289582,3.40397,2350.2,2349.8,0.7925]
[1727943289979,3.40391,2350.3,2349.8,0.7925]
[1727943290544,3.40391,2350.3,2349.2,0.1178848]
[1727943290545,3.40526,2349.3,2349.2,0.1178848]
[1727943290761,6.40526,2349.3,2349.2,0.1178848]
[1727943292564,3.40514,2349.4,2349.2,0.1178848]
[1727943293874,6.81036,2349.4,2349.2,0.1178848]
[1727943294082,3.40526,2349.3,2349.2,0.1178848]
[1727943297250,3.40514,2349.4,2349.2,0.1178848]
[1727943297464,6.40526,2349.3,2349.2,0.1178848]
[1727943297687,8.14363081,2349.3,2349.2,0.1178848]
[1727943297892,7.70399847,2349.3,2349.2,0.1178848]
[1727943298086,7.70402915,2349.3,2349.2,0.1178848]
[1727943298394,8.14720434,2349.3,2349.2,0.1178848]
[1727943298709,0.44317519,2349.3,2349.2,0.1178848]
[1727943300001,0.44317519,2349.3,2349.2,4.3056948]
[1727943300157,0.44317519,2349.3,2349.2,0.9002848]
[1727943300876,0.44317519,2349.3,2349.2,4.73628128]
[1727943301191,0.44317519,2349.3,2349.2,4.3056948]
[1727943301400,3.40411,2350.1,2349.5,3.40494]
[1727943301709,3.40411,2350.1,2349.5,6.80988]
[1727943301864,3.57958388,2350.2,2349.6,3.40475]
[1727943302071,0.86601648,2350.3,2349.8,0.7654]
[1727943302272,0.86601648,2350.8,2350.3,0.7654]
[1727943302451,1.29876915,2350.9,2350.3,0.7654]
[1727943302452,3.40295,2350.9,2350.3,0.7654]
[1727943303191,3.40288,2351.0,2350.3,0.7654]
[1727943303557,3.40288,2351.0,2350.3,4.16912]
[1727943304103,3.40236,2351.4,2350.8,3.40309]
[1727943304311,7.67009648,2351.6,2350.9,3.40289]
[1727943304599,3.40223,2351.4,2350.8,6.8061]
[1727943304767,3.40223,2351.4,2350.8,3.40301]
[1727943304969,3.40202,2351.6,2350.8,0.415371]
[1727943305200,3.40202,2351.6,2351.1,0.7507]
[1727943305704,3.40169,2351.8,2351.1,0.7507]
[1727943305705,3.40169,2351.8,2351.2,3.40243]
[1727943305991,8.42124332,2352.0,2351.2,3.40243]
[1727943305992,3.40144,2352.0,2351.3,0.7722]
[1727943306199,3.40144,2352.0,2351.4,3.40221]
[1727943306398,3.40151,2351.9,2351.3,0.7722]
[1727943306897,3.40165,2351.8,2351.3,0.7722]
[1727943307055,3.40169,2351.8,2351.3,0.7722]
[1727943307255,0.4433328,2352.1,2351.4,0.8251]
[1727943307500,0.4433328,2352.1,2351.5,3.40196]
[1727943307722,3.8445528,2352.1,2351.5,3.40196]
[1727943308301,3.8445528,2352.1,2351.4,4.22719]
[1727943308503,0.4433328,2352.1,2351.4,0.8251]
[1727943308797,0.4433328,2352.1,2352.0,4.21476]
[1727943310530,6.80057,2352.8,2352.1,3.40117]
[1727943310689,3.40025,2352.8,2352.1,3.40117]
[1727943310899,3.40025,2352.8,2352.2,3.40106]
[1727943311211,3.40025,2352.8,2351.6,3.40189]
[1727943311212,8.86254455,2353.2,2352.5,3.4006]
[1727943311426,3.39979,2353.1,2352.6,0.8022]
[1727943312152,3.84274123,2353.2,2352.6,4.20268]
[1727943312302,3.39992,2353.0,2352.6,0.8022]
[1727943312491,3.39973,2353.2,2352.6,0.8022]
[1727943312695,3.39973,2353.2,2352.6,4.20258]
[1727943312918,3.39963,2353.2,2352.7,3.40024]
[1727943313133,6.79884,2353.4,2352.7,3.40033]
[1727943313349,3.39956,2353.3,2352.7,3.40033]
[1727943313691,3.39937,2353.4,2352.7,3.40023]
[1727943314213,3.39967,2353.2,2352.7,3.40023]
[1727943314549,3.40002,2353.0,2352.6,0.8022]
[1727943314698,3.40013,2352.9,2352.6,0.8022]
[1727943315031,6.39938,2353.4,2352.6,4.20268]
[1727943315032,3.39971,2353.2,2352.6,4.20268]
[1727943315436,3.0,2353.5,2352.9,3.39993]
[1727943315754,6.79828,2353.6,2353.0,4.21497]
[1727943316036,3.39952,2353.3,2353.0,0.8151]
[1727943316636,3.39935,2353.4,2353.0,0.8151]
[1727943317511,5.01980332,2353.5,2353.0,0.8151]
[1727943317712,3.40015,2352.9,2352.6,0.7966]
[1727943317913,3.40015,2352.9,2351.7,0.340189]
[1727943317914,3.40101,2352.3,2352.0,0.7943]
[1727943318172,3.40137,2352.0,2351.7,0.7943]
[1727943318378,3.40096,2352.3,2351.4,0.7943]
[1727943318661,3.0,2351.8,2351.4,0.7943]
[1727943318843,11.42154332,2351.8,2351.0,0.7943]